[Event "*** Titled Tuesday Blitz"]
[Site "Chess.com"]
[Date "2021.03.09"]
[Round "3"]
[White "BrandonJacobson"]
[Black "Kildepiotr"]
[Result "1-0"]
[WhiteElo "2929"]
[BlackElo "2570"]
[TimeControl "180+1"]
[EndTime "10:27:32 PST"]
[Termination "BrandonJacobson won by resignation"]

1. d4 {[%clk 0:03:00.9]} 1... c5 {[%clk 0:02:59.6]} 2. d5 {[%clk 0:03:01.2]}
2... e5 {[%clk 0:02:59.5]} 3. Nc3 {[%clk 0:03:01.3]} 3... d6 {[%clk 0:02:59.9]}
4. e4 {[%clk 0:03:02.1]} 4... Be7 {[%clk 0:03:00.4]} 5. Nf3 {[%clk 0:03:00.2]}
5... a6 {[%clk 0:02:59.7]} 6. a4 {[%clk 0:03:00]} 6... Bg4 {[%clk 0:02:59.6]} 7.
Bd3 {[%clk 0:03:00.6]} 7... Nd7 {[%clk 0:02:58.6]} 8. a5 {[%clk 0:02:51.8]} 8...
Bxf3 {[%clk 0:02:57.9]} 9. Qxf3 {[%clk 0:02:52.7]} 9... Bg5 {[%clk 0:02:58.1]}
10. Bxg5 {[%clk 0:02:53.4]} 10... Qxg5 {[%clk 0:02:57.6]} 11. Qg3 {[%clk
0:02:54.3]} 11... Qxg3 {[%clk 0:02:56.6]} 12. hxg3 {[%clk 0:02:55.2]} 12... Ne7
{[%clk 0:02:55.5]} 13. Nd1 {[%clk 0:02:55.2]} 13... O-O {[%clk 0:02:53.2]} 14.
Ne3 {[%clk 0:02:55.2]} 14... b5 {[%clk 0:02:47.7]} 15. axb6 {[%clk 0:02:50.7]}
15... Nxb6 {[%clk 0:02:48.1]} 16. Ra5 {[%clk 0:02:35.5]} 16... g6 {[%clk
0:02:45.3]} 17. g4 {[%clk 0:02:35.1]} 17... Kg7 {[%clk 0:02:42.1]} 18. Ke2
{[%clk 0:02:34.3]} 18... f5 {[%clk 0:02:35]} 19. exf5 {[%clk 0:01:45.4]} 19...
Nexd5 {[%clk 0:02:24]} 20. Nxd5 {[%clk 0:01:46.3]} 20... Nxd5 {[%clk 0:02:24]}
21. g3 {[%clk 0:01:47.2]} 21... Ne7 {[%clk 0:02:16.9]} 22. fxg6 {[%clk
0:01:40.4]} 22... hxg6 {[%clk 0:02:17.8]} 23. Rha1 {[%clk 0:01:40.5]} 23... Nc6
{[%clk 0:02:14.6]} 24. Rxa6 {[%clk 0:01:38.8]} 24... Rxa6 {[%clk 0:02:14.3]} 25.
Rxa6 {[%clk 0:01:39.7]} 25... Nd4+ {[%clk 0:02:13.5]} 26. Kf1 {[%clk 0:01:35]}
26... Rd8 {[%clk 0:02:11.6]} 27. c3 {[%clk 0:01:10]} 27... Ne6 {[%clk
0:02:10.2]} 28. b4 {[%clk 0:01:03.4]} 28... cxb4 {[%clk 0:02:09.5]} 29. cxb4
{[%clk 0:01:04.3]} 29... Kf6 {[%clk 0:02:06.1]} 30. b5 {[%clk 0:00:59.3]} 30...
g5 {[%clk 0:02:05]} 31. Ra7 {[%clk 0:00:49.8]} 31... Nc5 {[%clk 0:01:59.7]} 32.
Be2 {[%clk 0:00:34.6]} 32... d5 {[%clk 0:01:57.4]} 33. Rc7 {[%clk 0:00:34]}
33... Ne4 {[%clk 0:01:53.9]} 34. b6 {[%clk 0:00:31.6]} 34... Rb8 {[%clk
0:01:43.1]} 35. b7 {[%clk 0:00:30.2]} 35... Nd6 {[%clk 0:01:40.1]} 36. Ba6
{[%clk 0:00:30.5]} 36... d4 {[%clk 0:01:35.3]} 37. Rc8 {[%clk 0:00:28]} 37...
Rxb7 {[%clk 0:01:35.6]} 38. Bxb7 {[%clk 0:00:28]} 38... Nxb7 {[%clk 0:01:36.5]}
39. Rc6+ {[%clk 0:00:27.9]} 1-0

[Event "*** Titled Tuesday Blitz"]
[Site "Chess.com"]
[Date "2021.03.09"]
[Round "3"]
[White "marianokar"]
[Black "SantoBlue"]
[Result "0-1"]
[WhiteElo "2466"]
[BlackElo "2845"]
[TimeControl "180+1"]
[EndTime "10:27:36 PST"]
[Termination "SantoBlue won by resignation"]

1. d4 {[%clk 0:03:00.9]} 1... Nf6 {[%clk 0:02:58.9]} 2. c4 {[%clk 0:02:59.1]}
2... g6 {[%clk 0:02:59.4]} 3. Nc3 {[%clk 0:02:58.5]} 3... Bg7 {[%clk 0:02:59.7]}
4. e4 {[%clk 0:02:58.6]} 4... O-O {[%clk 0:02:59.9]} 5. Be2 {[%clk 0:02:59.2]}
5... d6 {[%clk 0:03:00.3]} 6. Be3 {[%clk 0:02:59.6]} 6... Nc6 {[%clk 0:03:00]}
7. Nf3 {[%clk 0:02:56]} 7... Bg4 {[%clk 0:02:58]} 8. d5 {[%clk 0:02:55.5]} 8...
Bxf3 {[%clk 0:02:56.6]} 9. Bxf3 {[%clk 0:02:55.6]} 9... Ne5 {[%clk 0:02:57.2]}
10. Be2 {[%clk 0:02:55.6]} 10... c6 {[%clk 0:02:57.8]} 11. dxc6 {[%clk 0:02:33]}
11... bxc6 {[%clk 0:02:54.1]} 12. O-O {[%clk 0:02:33.4]} 12... Qa5 {[%clk
0:02:46.6]} 13. f4 {[%clk 0:02:20.4]} 13... Ned7 {[%clk 0:02:43.3]} 14. Qc2
{[%clk 0:01:56.3]} 14... h5 {[%clk 0:02:37.2]} 15. Kh1 {[%clk 0:01:50.9]} 15...
Rab8 {[%clk 0:02:35.1]} 16. Rab1 {[%clk 0:01:34.6]} 16... Ng4 {[%clk 0:02:29.4]}
17. Bd2 {[%clk 0:01:12.8]} 17... Qc5 {[%clk 0:02:16.7]} 18. Bxg4 {[%clk
0:01:00.6]} 18... hxg4 {[%clk 0:02:16.6]} 19. Qd3 {[%clk 0:01:01.1]} 19... Qh5
{[%clk 0:02:15.1]} 20. b4 {[%clk 0:00:59.1]} 20... a5 {[%clk 0:02:11.3]} 21. b5
{[%clk 0:00:50.4]} 21... Nc5 {[%clk 0:02:10.5]} 22. Qe2 {[%clk 0:00:51]} 22...
cxb5 {[%clk 0:02:05.1]} 23. cxb5 {[%clk 0:00:50.3]} 23... Bd4 {[%clk 0:02:02.7]}
24. Nd5 {[%clk 0:00:47.9]} 24... Kg7 {[%clk 0:01:59.7]} 25. Be3 {[%clk
0:00:38.6]} 25... Bxe3 {[%clk 0:01:55.2]} 26. Qxe3 {[%clk 0:00:39.5]} 26... Rh8
{[%clk 0:01:54.5]} 27. h3 {[%clk 0:00:38]} 27... gxh3 {[%clk 0:01:53.2]} 28. g3
{[%clk 0:00:38.1]} 28... h2 {[%clk 0:01:46.5]} 29. Nxe7 {[%clk 0:00:25.8]} 29...
Rbe8 {[%clk 0:01:43.7]} 30. Qd4+ {[%clk 0:00:25.4]} 30... f6 {[%clk 0:01:41.1]}
31. Nd5 {[%clk 0:00:25.1]} 31... Nxe4 {[%clk 0:01:41]} 32. Rb3 {[%clk
0:00:20.2]} 32... Qe2 {[%clk 0:01:37.3]} 33. Rc1 {[%clk 0:00:18.2]} 33... Nf2+
{[%clk 0:01:36.9]} 0-1

[Event "*** Titled Tuesday Blitz"]
[Site "Chess.com"]
[Date "2021.03.09"]
[Round "3"]
[White "vinniethepooh"]
[Black "ChrisTool2"]
[Result "1-0"]
[WhiteElo "2715"]
[BlackElo "2341"]
[TimeControl "180+1"]
[EndTime "10:27:39 PST"]
[Termination "vinniethepooh won by resignation"]

1. d4 {[%clk 0:03:00.9]} 1... Nf6 {[%clk 0:02:47.7]} 2. c4 {[%clk 0:03:01]} 2...
e6 {[%clk 0:02:41.5]} 3. Nc3 {[%clk 0:03:01.2]} 3... d5 {[%clk 0:02:41.4]} 4.
cxd5 {[%clk 0:03:01.6]} 4... exd5 {[%clk 0:02:41.5]} 5. Bg5 {[%clk 0:03:02]}
5... Bb4 {[%clk 0:02:37.8]} 6. e3 {[%clk 0:03:01.4]} 6... c5 {[%clk 0:02:36]} 7.
Ne2 {[%clk 0:02:42.4]} 7... Nbd7 {[%clk 0:02:33.9]} 8. a3 {[%clk 0:02:42.1]}
8... Bxc3+ {[%clk 0:02:20.1]} 9. Nxc3 {[%clk 0:02:43]} 9... Qb6 {[%clk
0:02:14.5]} 10. Qd2 {[%clk 0:02:06.5]} 10... cxd4 {[%clk 0:02:08.4]} 11. exd4
{[%clk 0:02:07.4]} 11... O-O {[%clk 0:02:08.3]} 12. Be2 {[%clk 0:02:08]} 12...
Re8 {[%clk 0:02:01.1]} 13. O-O {[%clk 0:02:08.5]} 13... Ne4 {[%clk 0:02:01.3]}
14. Nxe4 {[%clk 0:02:07.6]} 14... Rxe4 {[%clk 0:02:00.8]} 15. Bd3 {[%clk
0:01:39.2]} 15... Re8 {[%clk 0:01:18.9]} 16. Rfe1 {[%clk 0:01:38.2]} 16... Rf8
{[%clk 0:01:10.9]} 17. Be7 {[%clk 0:01:28.9]} 17... Re8 {[%clk 0:01:10.6]} 18.
Bc5 {[%clk 0:01:20.6]} 18... Qd8 {[%clk 0:01:05.9]} 19. Rxe8+ {[%clk 0:01:16.5]}
19... Qxe8 {[%clk 0:01:06.8]} 20. Re1 {[%clk 0:01:17.1]} 20... Qd8 {[%clk
0:01:07.4]} 21. Qg5 {[%clk 0:00:55.1]} 21... f6 {[%clk 0:00:50.5]} 22. Qxd5+
{[%clk 0:00:52.2]} 22... Kh8 {[%clk 0:00:48.2]} 23. Qh5 {[%clk 0:00:51.1]} 23...
f5 {[%clk 0:00:28.1]} 24. Re8+ {[%clk 0:00:49.7]} 1-0

[Event "*** Titled Tuesday Blitz"]
[Site "Chess.com"]
[Date "2021.03.09"]
[Round "3"]
[White "imdvb6307"]
[Black "PrinceMurad09"]
[Result "0-1"]
[WhiteElo "2369"]
[BlackElo "2554"]
[TimeControl "180+1"]
[EndTime "10:27:42 PST"]
[Termination "PrinceMurad09 won by resignation"]

1. c4 {[%clk 0:03:00.9]} 1... c5 {[%clk 0:02:57.5]} 2. Nf3 {[%clk 0:03:00.2]}
2... Nc6 {[%clk 0:02:46.5]} 3. d4 {[%clk 0:02:59.7]} 3... cxd4 {[%clk
0:02:45.2]} 4. Nxd4 {[%clk 0:02:59.8]} 4... Qb6 {[%clk 0:02:45.5]} 5. Nb3 {[%clk
0:02:55.7]} 5... e6 {[%clk 0:02:43.7]} 6. Be3 {[%clk 0:02:51.1]} 6... Qc7 {[%clk
0:02:43.1]} 7. g3 {[%clk 0:02:41.1]} 7... Nf6 {[%clk 0:02:42.7]} 8. Bg2 {[%clk
0:02:40.6]} 8... d5 {[%clk 0:02:38.1]} 9. cxd5 {[%clk 0:02:33.7]} 9... Nxd5
{[%clk 0:02:38.5]} 10. Bxd5 {[%clk 0:02:23.5]} 10... exd5 {[%clk 0:02:39.4]} 11.
O-O {[%clk 0:02:20.9]} 11... Be7 {[%clk 0:02:36]} 12. Nc3 {[%clk 0:02:20.3]}
12... Bh3 {[%clk 0:02:15.1]} 13. Nxd5 {[%clk 0:02:14]} 13... Qd8 {[%clk
0:02:08.5]} 14. Re1 {[%clk 0:02:01.7]} 14... O-O {[%clk 0:02:07.1]} 15. Nxe7+
{[%clk 0:01:49.7]} 15... Qxe7 {[%clk 0:02:07.4]} 16. Bc5 {[%clk 0:01:47.6]}
16... Qe4 {[%clk 0:01:58.6]} 17. f3 {[%clk 0:01:46.7]} 17... Qe6 {[%clk
0:01:55.9]} 18. e4 {[%clk 0:01:31]} 18... Rfd8 {[%clk 0:01:54.7]} 19. Qe2 {[%clk
0:01:30.6]} 19... b6 {[%clk 0:01:54.6]} 20. Be3 {[%clk 0:01:27.6]} 20... Ne5
{[%clk 0:01:48.8]} 21. Rad1 {[%clk 0:01:02.6]} 21... Qf6 {[%clk 0:01:41.6]} 22.
Bf4 {[%clk 0:01:01.2]} 22... Ng6 {[%clk 0:01:40.2]} 23. Be3 {[%clk 0:00:55.5]}
23... Ne5 {[%clk 0:01:40.2]} 24. Bd4 {[%clk 0:00:44]} 24... Nxf3+ {[%clk
0:01:35.9]} 25. Kh1 {[%clk 0:00:31.7]} 25... Nxd4 {[%clk 0:01:34]} 26. Nxd4
{[%clk 0:00:18]} 26... Rxd4 {[%clk 0:01:34.9]} 27. Qh5 {[%clk 0:00:11.9]} 27...
Rxd1 {[%clk 0:01:26.8]} 28. Rxd1 {[%clk 0:00:11.9]} 28... Be6 {[%clk 0:01:22.4]}
29. Kg2 {[%clk 0:00:08.9]} 29... g6 {[%clk 0:01:20.5]} 0-1

[Event "*** Titled Tuesday Blitz"]
[Site "Chess.com"]
[Date "2021.03.09"]
[Round "3"]
[White "GregShahade"]
[Black "hellokostya"]
[Result "1-0"]
[WhiteElo "2746"]
[BlackElo "2527"]
[TimeControl "180+1"]
[EndTime "10:27:44 PST"]
[Termination "GregShahade won by resignation"]

1. e4 {[%clk 0:03:00.9]} 1... d6 {[%clk 0:02:59.5]} 2. d4 {[%clk 0:03:00.6]}
2... Nf6 {[%clk 0:02:59.5]} 3. Nc3 {[%clk 0:03:00.8]} 3... g6 {[%clk 0:02:59.8]}
4. Be3 {[%clk 0:02:56.2]} 4... Bg7 {[%clk 0:02:59.7]} 5. Qd2 {[%clk 0:02:54.4]}
5... Nc6 {[%clk 0:02:59.6]} 6. f3 {[%clk 0:02:50.9]} 6... e5 {[%clk 0:02:58.4]}
7. Nge2 {[%clk 0:02:50.4]} 7... O-O {[%clk 0:02:57.6]} 8. O-O-O {[%clk
0:02:48.6]} 8... h5 {[%clk 0:02:50.7]} 9. Kb1 {[%clk 0:02:44.7]} 9... a6 {[%clk
0:02:44.6]} 10. h4 {[%clk 0:02:22.4]} 10... exd4 {[%clk 0:02:38.3]} 11. Nxd4
{[%clk 0:02:21.8]} 11... Ne5 {[%clk 0:02:39]} 12. Bh6 {[%clk 0:02:11.1]} 12...
b5 {[%clk 0:02:36]} 13. Bxg7 {[%clk 0:02:09.2]} 13... Kxg7 {[%clk 0:02:36]} 14.
Qg5 {[%clk 0:01:42.8]} 14... b4 {[%clk 0:02:22.6]} 15. Nd5 {[%clk 0:01:19.2]}
15... Nxd5 {[%clk 0:02:21.7]} 16. Qxd8 {[%clk 0:01:19.1]} 16... Rxd8 {[%clk
0:02:09]} 17. exd5 {[%clk 0:01:19.3]} 17... Bd7 {[%clk 0:01:58.4]} 18. Be2
{[%clk 0:01:15.7]} 18... a5 {[%clk 0:01:53.5]} 19. Rhe1 {[%clk 0:01:12.9]} 19...
Re8 {[%clk 0:01:52.1]} 20. Bb5 {[%clk 0:01:11]} 20... Bxb5 {[%clk 0:01:20.2]}
21. Nxb5 {[%clk 0:01:11.9]} 21... Rec8 {[%clk 0:01:20.1]} 22. f4 {[%clk
0:01:11.7]} 22... Ng4 {[%clk 0:01:18.3]} 23. Re7 {[%clk 0:01:11.8]} 23... Kf6
{[%clk 0:01:03.4]} 24. Rde1 {[%clk 0:01:02.9]} 24... Nh6 {[%clk 0:00:21.2]} 25.
Nxc7 {[%clk 0:00:55.2]} 25... Rcb8 {[%clk 0:00:21.6]} 26. Nxa8 {[%clk
0:00:51.4]} 1-0

[Event "*** Titled Tuesday Blitz"]
[Site "Chess.com"]
[Date "2021.03.09"]
[Round "3"]
[White "Zhigalko_Sergei"]
[Black "Shahaliyev"]
[Result "1-0"]
[WhiteElo "2935"]
[BlackElo "2636"]
[TimeControl "180+1"]
[EndTime "10:27:47 PST"]
[Termination "Zhigalko_Sergei won by resignation"]

1. e4 {[%clk 0:03:00.9]} 1... e5 {[%clk 0:02:59.6]} 2. Nf3 {[%clk 0:03:00.1]}
2... Nc6 {[%clk 0:02:59.8]} 3. Bc4 {[%clk 0:03:00.3]} 3... Nf6 {[%clk
0:02:59.5]} 4. Ng5 {[%clk 0:03:00.4]} 4... d5 {[%clk 0:02:59.2]} 5. exd5 {[%clk
0:03:01.3]} 5... Na5 {[%clk 0:02:58.7]} 6. Bb5+ {[%clk 0:03:01.8]} 6... c6
{[%clk 0:02:58.5]} 7. dxc6 {[%clk 0:03:02.7]} 7... Nxc6 {[%clk 0:02:57.2]} 8.
O-O {[%clk 0:02:46.1]} 8... Be7 {[%clk 0:02:56.2]} 9. d3 {[%clk 0:02:44.6]} 9...
O-O {[%clk 0:02:56.2]} 10. Bxc6 {[%clk 0:02:42.7]} 10... bxc6 {[%clk 0:02:56.1]}
11. Nc3 {[%clk 0:02:42.8]} 11... Nd5 {[%clk 0:02:51.4]} 12. Nf3 {[%clk
0:02:40.3]} 12... f6 {[%clk 0:02:49]} 13. Ne4 {[%clk 0:02:24.3]} 13... Bg4
{[%clk 0:02:45.8]} 14. h3 {[%clk 0:02:23.4]} 14... Bh5 {[%clk 0:02:45.8]} 15.
Ng3 {[%clk 0:02:23.8]} 15... Bg6 {[%clk 0:02:45.6]} 16. Re1 {[%clk 0:02:22.5]}
16... Rb8 {[%clk 0:02:44.5]} 17. Nh4 {[%clk 0:02:20]} 17... Bf7 {[%clk
0:02:43.1]} 18. Nhf5 {[%clk 0:02:19.5]} 18... Bc5 {[%clk 0:02:39.5]} 19. Qg4
{[%clk 0:02:10.9]} 19... Bg6 {[%clk 0:02:36.2]} 20. h4 {[%clk 0:02:02.9]} 20...
Rb4 {[%clk 0:02:28.9]} 21. Re4 {[%clk 0:01:59.3]} 21... Rxe4 {[%clk 0:01:52.7]}
22. dxe4 {[%clk 0:01:57.8]} 22... Ne7 {[%clk 0:01:51.7]} 23. Nxe7+ {[%clk
0:01:49.7]} 23... Qxe7 {[%clk 0:01:52.6]} 24. h5 {[%clk 0:01:49]} 24... Be8
{[%clk 0:01:48.7]} 25. Nf5 {[%clk 0:01:44.7]} 25... Qb7 {[%clk 0:01:48]} 26. Bh6
{[%clk 0:01:25.2]} 26... Rf7 {[%clk 0:01:46.2]} 27. Rd1 {[%clk 0:01:22.2]} 27...
Kf8 {[%clk 0:01:34]} 28. Nxg7 {[%clk 0:01:01.9]} 28... Rxg7 {[%clk 0:01:34.9]}
29. Rd8 {[%clk 0:01:01]} 29... Bxf2+ {[%clk 0:00:41.9]} 30. Kxf2 {[%clk
0:00:49.6]} 1-0

[Event "*** Titled Tuesday Blitz"]
[Site "Chess.com"]
[Date "2021.03.09"]
[Round "3"]
[White "IljaJoke"]
[Black "KuzubovYuriy"]
[Result "0-1"]
[WhiteElo "2475"]
[BlackElo "2916"]
[TimeControl "180+1"]
[EndTime "10:27:47 PST"]
[Termination "KuzubovYuriy won by resignation"]

1. e4 {[%clk 0:03:00.9]} 1... c5 {[%clk 0:02:59.8]} 2. Nf3 {[%clk 0:03:00.6]}
2... Nc6 {[%clk 0:02:59.7]} 3. d4 {[%clk 0:03:01]} 3... cxd4 {[%clk 0:03:00.6]}
4. Nxd4 {[%clk 0:03:01.4]} 4... g6 {[%clk 0:03:01.5]} 5. c4 {[%clk 0:03:01.2]}
5... Nf6 {[%clk 0:03:01.6]} 6. Nc3 {[%clk 0:03:01.3]} 6... d6 {[%clk 0:03:02.3]}
7. Be2 {[%clk 0:03:01.2]} 7... Bg7 {[%clk 0:03:01.8]} 8. Be3 {[%clk 0:03:00.8]}
8... O-O {[%clk 0:03:00.5]} 9. O-O {[%clk 0:03:00.8]} 9... Nxd4 {[%clk
0:02:59.8]} 10. Bxd4 {[%clk 0:03:00.4]} 10... Bd7 {[%clk 0:03:00.4]} 11. h3
{[%clk 0:03:00.5]} 11... Bc6 {[%clk 0:03:00.7]} 12. Qc2 {[%clk 0:03:00.9]} 12...
a5 {[%clk 0:03:00]} 13. Rad1 {[%clk 0:03:00.9]} 13... Nd7 {[%clk 0:02:56.2]} 14.
Bxg7 {[%clk 0:02:58.2]} 14... Kxg7 {[%clk 0:02:57.1]} 15. Bg4 {[%clk 0:02:58.6]}
15... Ne5 {[%clk 0:02:51.7]} 16. c5 {[%clk 0:02:57.8]} 16... a4 {[%clk
0:02:43.4]} 17. cxd6 {[%clk 0:02:57]} 17... exd6 {[%clk 0:02:44.3]} 18. Be2
{[%clk 0:02:48.1]} 18... g5 {[%clk 0:02:32.7]} 19. Qd2 {[%clk 0:02:46]} 19... a3
{[%clk 0:02:23.2]} 20. bxa3 {[%clk 0:02:19.4]} 20... Rxa3 {[%clk 0:02:20.1]} 21.
Nb5 {[%clk 0:01:33.3]} 21... Bxb5 {[%clk 0:02:13.8]} 22. Bxb5 {[%clk 0:01:34.2]}
22... h6 {[%clk 0:01:40.7]} 23. Qxd6 {[%clk 0:01:27.4]} 23... Qxd6 {[%clk
0:01:38.7]} 24. Rxd6 {[%clk 0:01:28.3]} 24... Rxa2 {[%clk 0:01:38.3]} 25. Rb1
{[%clk 0:01:28.8]} 25... Rc8 {[%clk 0:01:35.2]} 26. Bf1 {[%clk 0:01:26]} 26...
Rcc2 {[%clk 0:01:32.1]} 27. Rd5 {[%clk 0:01:17.2]} 27... Ng6 {[%clk 0:01:28.2]}
28. f3 {[%clk 0:00:35.4]} 28... Nh4 {[%clk 0:01:13.6]} 29. Rxb7 {[%clk
0:00:29.4]} 29... Ra1 {[%clk 0:01:11.6]} 30. Rdd7 {[%clk 0:00:20.4]} 30... Rxg2+
{[%clk 0:01:09.2]} 0-1

[Event "*** Titled Tuesday Blitz"]
[Site "Chess.com"]
[Date "2021.03.09"]
[Round "3"]
[White "davidkalashian"]
[Black "vugarrasulov"]
[Result "0-1"]
[WhiteElo "2605"]
[BlackElo "2858"]
[TimeControl "180+1"]
[EndTime "10:27:49 PST"]
[Termination "vugarrasulov won by resignation"]

1. d4 {[%clk 0:03:00.9]} 1... Nf6 {[%clk 0:03:00.2]} 2. c4 {[%clk 0:02:59.7]}
2... e6 {[%clk 0:03:00.6]} 3. Nf3 {[%clk 0:02:59.5]} 3... b6 {[%clk 0:03:00.3]}
4. g3 {[%clk 0:02:59.3]} 4... Bb7 {[%clk 0:03:00.5]} 5. Bg2 {[%clk 0:02:59.1]}
5... Be7 {[%clk 0:03:01.1]} 6. O-O {[%clk 0:02:58.9]} 6... O-O {[%clk
0:03:01.7]} 7. Re1 {[%clk 0:02:58.5]} 7... c5 {[%clk 0:03:00.3]} 8. d5 {[%clk
0:02:57.7]} 8... exd5 {[%clk 0:03:01.2]} 9. Nh4 {[%clk 0:02:57.3]} 9... Ne4
{[%clk 0:03:01.4]} 10. cxd5 {[%clk 0:02:54]} 10... Bxh4 {[%clk 0:03:01.4]} 11.
Bxe4 {[%clk 0:02:53.2]} 11... Bf6 {[%clk 0:03:02.3]} 12. Nc3 {[%clk 0:02:52.1]}
12... d6 {[%clk 0:03:01.7]} 13. a4 {[%clk 0:02:48.4]} 13... Na6 {[%clk
0:03:00.1]} 14. Bg2 {[%clk 0:02:38.9]} 14... Nb4 {[%clk 0:02:59.8]} 15. a5
{[%clk 0:02:28.1]} 15... Ba6 {[%clk 0:02:52.6]} 16. Bf4 {[%clk 0:02:23.6]} 16...
Re8 {[%clk 0:02:47.9]} 17. Qd2 {[%clk 0:02:08]} 17... bxa5 {[%clk 0:02:41.6]}
18. Ne4 {[%clk 0:01:45]} 18... Be5 {[%clk 0:02:41.5]} 19. Bg5 {[%clk 0:01:29.5]}
19... f6 {[%clk 0:02:29.7]} 20. Be3 {[%clk 0:01:28.4]} 20... Qb6 {[%clk
0:02:29.4]} 21. Bh3 {[%clk 0:01:21.2]} 21... Bc8 {[%clk 0:02:21.1]} 22. Bxc8
{[%clk 0:01:13.2]} 22... Raxc8 {[%clk 0:02:22]} 23. Red1 {[%clk 0:01:08.9]}
23... Bxb2 {[%clk 0:02:15.2]} 24. Nxd6 {[%clk 0:00:59.5]} 24... Bxa1 {[%clk
0:02:08.4]} 25. Nxc8 {[%clk 0:00:55.4]} 25... Rxc8 {[%clk 0:02:09.3]} 26. Rxa1
{[%clk 0:00:55.3]} 26... Rd8 {[%clk 0:02:09.8]} 27. Qc3 {[%clk 0:00:11.6]} 27...
Rxd5 {[%clk 0:02:09.6]} 28. Qc4 {[%clk 0:00:10.1]} 28... a6 {[%clk 0:02:06.8]}
29. Rd1 {[%clk 0:00:08.7]} 29... Qb5 {[%clk 0:02:07.2]} 30. Qc1 {[%clk
0:00:05.3]} 30... c4 {[%clk 0:01:59.5]} 31. Rxd5 {[%clk 0:00:04.5]} 31... Qxd5
{[%clk 0:02:00.4]} 32. Qc3 {[%clk 0:00:04.5]} 32... h6 {[%clk 0:01:58.5]} 33. h4
{[%clk 0:00:04.1]} 33... Qd1+ {[%clk 0:01:57]} 34. Kg2 {[%clk 0:00:03.6]} 34...
Qxe2 {[%clk 0:01:57.6]} 35. Qd4 {[%clk 0:00:04.1]} 35... Qd3 {[%clk 0:01:53.8]}
36. Qc5 {[%clk 0:00:04.1]} 36... Qd5+ {[%clk 0:01:53.6]} 37. Qxd5+ {[%clk
0:00:02.9]} 37... Nxd5 {[%clk 0:01:54.5]} 38. Bd4 {[%clk 0:00:03.8]} 38... c3
{[%clk 0:01:54.1]} 0-1

[Event "*** Titled Tuesday Blitz"]
[Site "Chess.com"]
[Date "2021.03.09"]
[Round "3"]
[White "Malev212"]
[Black "Chernov_Mikhail"]
[Result "0-1"]
[WhiteElo "2551"]
[BlackElo "2395"]
[TimeControl "180+1"]
[EndTime "10:27:49 PST"]
[Termination "Chernov_Mikhail won by resignation"]

1. e4 {[%clk 0:03:00.9]} 1... c5 {[%clk 0:03:00]} 2. Nf3 {[%clk 0:02:59.7]} 2...
Nc6 {[%clk 0:03:00.5]} 3. d4 {[%clk 0:02:57.8]} 3... cxd4 {[%clk 0:03:00.3]} 4.
Nxd4 {[%clk 0:02:57.6]} 4... Nf6 {[%clk 0:03:00.9]} 5. Nc3 {[%clk 0:02:57]} 5...
d6 {[%clk 0:03:01.6]} 6. Bc4 {[%clk 0:02:55.6]} 6... e6 {[%clk 0:03:01.8]} 7.
Be3 {[%clk 0:02:54]} 7... a6 {[%clk 0:03:02.1]} 8. Qe2 {[%clk 0:02:53.1]} 8...
Qc7 {[%clk 0:03:02.3]} 9. Bb3 {[%clk 0:02:51.1]} 9... Na5 {[%clk 0:03:02.8]} 10.
g4 {[%clk 0:02:44.5]} 10... b5 {[%clk 0:03:03.2]} 11. g5 {[%clk 0:02:43.8]}
11... Nd7 {[%clk 0:03:03.8]} 12. O-O-O {[%clk 0:02:32.2]} 12... Rb8 {[%clk
0:03:02.3]} 13. Bxe6 {[%clk 0:02:31.1]} 13... fxe6 {[%clk 0:03:02.7]} 14. Nxe6
{[%clk 0:02:30.2]} 14... Qc4 {[%clk 0:03:03.3]} 15. Qxc4 {[%clk 0:01:41.2]}
15... Nxc4 {[%clk 0:03:04.2]} 16. Bd4 {[%clk 0:01:41]} 16... Nde5 {[%clk
0:02:34.3]} 17. Nc7+ {[%clk 0:01:37]} 17... Kd8 {[%clk 0:02:30]} 18. N7d5 {[%clk
0:01:36.4]} 18... Bg4 {[%clk 0:02:14.1]} 19. f4 {[%clk 0:01:32.2]} 19... Bxd1
{[%clk 0:02:07.1]} 20. Rxd1 {[%clk 0:01:31.9]} 20... Nd7 {[%clk 0:01:50]} 21. b3
{[%clk 0:01:31]} 21... Ncb6 {[%clk 0:01:47.9]} 22. Nb4 {[%clk 0:01:28.9]} 22...
Ra8 {[%clk 0:01:23.1]} 23. Ncd5 {[%clk 0:01:24.1]} 23... Nxd5 {[%clk 0:01:19.9]}
24. exd5 {[%clk 0:01:23.8]} 24... a5 {[%clk 0:01:10.9]} 25. Nc6+ {[%clk
0:01:22.6]} 25... Kc7 {[%clk 0:01:11.5]} 26. Re1 {[%clk 0:01:21.8]} 26... b4
{[%clk 0:01:01.9]} 27. Bb2 {[%clk 0:01:17.3]} 27... Rg8 {[%clk 0:00:48.9]} 28.
f5 {[%clk 0:01:11.2]} 28... Ne5 {[%clk 0:00:43.9]} 29. Bxe5 {[%clk 0:01:00.2]}
29... dxe5 {[%clk 0:00:44.8]} 30. Rxe5 {[%clk 0:00:59.2]} 30... Bd6 {[%clk
0:00:44.3]} 31. Re6 {[%clk 0:00:57.6]} 31... Rge8 {[%clk 0:00:41.4]} 32. Nd4
{[%clk 0:00:54.6]} 0-1

[Event "*** Titled Tuesday Blitz"]
[Site "Chess.com"]
[Date "2021.03.09"]
[Round "3"]
[White "Haykoooo0o"]
[Black "chessmachine14"]
[Result "1-0"]
[WhiteElo "2528"]
[BlackElo "2312"]
[TimeControl "180+1"]
[EndTime "10:27:56 PST"]
[Termination "Haykoooo0o won on time"]

1. d4 {[%clk 0:03:00.9]} 1... Nf6 {[%clk 0:02:59]} 2. Nf3 {[%clk 0:03:00.7]}
2... g6 {[%clk 0:02:54.1]} 3. Bf4 {[%clk 0:03:00.2]} 3... Bg7 {[%clk 0:02:54.1]}
4. h3 {[%clk 0:03:00.6]} 4... O-O {[%clk 0:02:54.7]} 5. e3 {[%clk 0:03:01]} 5...
d6 {[%clk 0:02:55.4]} 6. Be2 {[%clk 0:03:01.3]} 6... Nbd7 {[%clk 0:02:56]} 7.
O-O {[%clk 0:03:01.4]} 7... Qe8 {[%clk 0:02:56.7]} 8. c3 {[%clk 0:03:01.7]} 8...
e5 {[%clk 0:02:57]} 9. Bh2 {[%clk 0:03:02.2]} 9... Ne4 {[%clk 0:02:56.9]} 10.
Nbd2 {[%clk 0:03:02]} 10... f5 {[%clk 0:02:51.8]} 11. Nxe4 {[%clk 0:03:00.6]}
11... fxe4 {[%clk 0:02:51.2]} 12. Nd2 {[%clk 0:03:01.2]} 12... d5 {[%clk
0:02:44.1]} 13. Qb3 {[%clk 0:02:55.9]} 13... c6 {[%clk 0:02:42.9]} 14. Nxe4
{[%clk 0:02:50]} 14... Kh8 {[%clk 0:02:32.4]} 15. Nd6 {[%clk 0:02:43.4]} 15...
Qe6 {[%clk 0:02:10.9]} 16. Nxc8 {[%clk 0:02:40.7]} 16... Raxc8 {[%clk
0:02:10.1]} 17. Qxb7 {[%clk 0:02:13.1]} 17... h5 {[%clk 0:01:16.2]} 18. Qb3
{[%clk 0:01:58.8]} 18... exd4 {[%clk 0:01:15]} 19. cxd4 {[%clk 0:01:55.3]} 19...
Rf7 {[%clk 0:00:41.3]} 20. Qc2 {[%clk 0:01:49.3]} 20... Rcf8 {[%clk 0:00:38.6]}
21. Bd3 {[%clk 0:01:47.8]} 21... Bh6 {[%clk 0:00:26.3]} 22. Rac1 {[%clk
0:01:34.5]} 22... Rxf2 {[%clk 0:00:08]} 23. Rxf2 {[%clk 0:01:27]} 23... Bxe3
{[%clk 0:00:07.9]} 24. Rf1 {[%clk 0:01:23.9]} 24... h4 {[%clk 0:00:06.1]} 25.
Kh1 {[%clk 0:01:13.9]} 25... Bxf2 {[%clk 0:00:03.9]} 26. Rxf2 {[%clk 0:01:14.1]}
26... Qe1+ {[%clk 0:00:03.6]} 27. Bg1 {[%clk 0:01:14.1]} 1-0